bitfinex-derivatives/quotes_SOLF0:USTF0_20241211
["timestamp","ask_amount","ask_price","bid_price","bid_amount"]
[1733883483270,13.30776222,214.57,214.45,3.16]
[1733883483477,5.66197623,214.59,214.37,3.16]
[1733883483478,29.85366281,214.52,214.37,3.16]
[1733883483667,12.61240011,214.51,214.37,3.16]
[1733883483871,29.85366281,214.52,214.37,3.16]
[1733883484072,2.1179,214.5,214.37,3.16]
[1733883484776,12.59478718,214.49,214.37,3.16]
[1733883484974,2.33,214.45,214.37,5.4908]
[1733883485174,2.1765,214.49,214.37,3.16]
[1733883485471,12.58910467,214.48,214.37,3.16]
[1733883485671,2.1765,214.49,214.37,3.16]
[1733883485872,14.77883624,214.48,214.36,3.16]
[1733883486070,12.58853624,214.47,214.35,5.50246029]
[1733883486385,12.58853624,214.47,214.11,14.06]
[1733883486386,29.85366281,214.4,214.06,4.6683]
[1733883486573,29.85366281,214.36,214.18,29.85366281]
[1733883486872,7.5268,214.35,214.24,5.72442205]
[1733883487077,12.58924692,214.34,214.19,2.33437602]
[1733883487278,2.3322,214.25,214.19,2.33437602]
[1733883487474,4.3668,214.35,214.23,5.49925398]
[1733883487671,2.3321,214.26,214.24,2.33383121]
[1733883487872,4.3668,214.35,214.24,2.33383121]
[1733883488277,2.3314,214.32,214.24,2.33383121]
[1733883488475,4.3668,214.35,214.24,2.33383121]
[1733883489073,4.3668,214.35,214.26,29.85366281]
[1733883489274,2.1765,214.35,214.27,2.33350445]
[1733883490077,2.2414,214.43,214.27,2.33350445]
[1733883490279,25.00324492,214.42,214.27,2.33350445]
[1733883490479,15.74443352,214.42,214.27,2.33350445]
[1733883490678,2.3307,214.39,214.31,2.3315]
[1733883491877,2.3305,214.41,214.33,2.3313]
[1733883492177,2.3305,214.41,214.3,33.01366281]
[1733883492178,5.56744571,214.46,214.34,29.85366281]
[1733883492478,2.3301,214.45,214.36,2.3309]
[1733883492673,2.1932,214.47,214.37,3.16]
[1733883492982,3.16,214.52,214.38,29.85366281]
[1733883493278,5.2743,214.52,214.38,29.85366281]
[1733883493580,2.3297,214.48,214.41,2.3304]
[1733883493876,5.2743,214.52,214.41,2.3304]
[1733883494076,0.69536513,214.51,214.41,2.3304]
[1733883494580,2.3297,214.48,214.41,2.3304]
[1733883495077,2.3297,214.48,214.3,29.85366281]
[1733883495078,0.69545901,214.47,214.36,3.16]
[1733883495474,2.3303,214.43,214.36,3.16]
[1733883495672,3.16,214.49,214.36,3.16]
[1733883495880,0.69545901,214.48,214.36,3.16]
[1733883496076,3.16,214.49,214.36,3.16]
[1733883496380,0.69560971,214.48,214.36,3.16]
[1733883496580,30.54927252,214.48,214.33,3.16]
[1733883496781,0.69560971,214.48,214.35,5.64455969]
[1733883497081,2.3302,214.43,214.36,2.331]
[1733883497282,2.0474,214.5,214.35,5.64455969]
[1733883497579,2.33,214.45,214.35,5.64455969]
[1733883497779,0.69559689,214.49,214.35,5.64455969]
[1733883497979,0.69559689,214.44,214.35,5.64455969]
[1733883498177,2.3304,214.41,214.35,5.64455969]
[1733883498380,3.16,214.45,214.3,33.01366281]
[1733883498581,0.69567455,214.44,214.3,33.01366281]
[1733883499083,2.3308,214.38,214.34,5.69550236]
[1733883499279,3.16,214.45,214.3,33.01366281]
[1733883499487,2.3314,214.32,214.26,29.85366281]
[1733883499680,3.16,214.39,214.22,78.37366281]
[1733883499881,7.05921425,214.38,214.27,7.87769457]
[1733883500077,0.69591425,214.37,214.27,7.87769457]
[1733883500882,6.3633,214.38,214.27,7.87769457]
[1733883501077,6.3633,214.38,214.28,2.3317]
[1733883501283,6.3633,214.38,214.29,2.33328666]
[1733883501486,8.6941,214.38,214.29,4.66488666]
[1733883501682,6.3633,214.38,214.29,4.66488666]
[1733883501881,29.85366281,214.5,214.3,29.85366281]
[1733883502085,32.13457685,214.49,214.31,3.16]
[1733883502283,22.59087685,214.48,214.31,3.16]
[1733883502585,21.89502075,214.47,214.31,3.16]
[1733883502782,2.3302,214.43,214.31,3.16]
[1733883502986,6.3837,214.49,214.34,29.85366281]
[1733883503181,2.3298,214.48,214.39,2.3306]
[1733883503378,6.3837,214.49,214.4,3.16]
[1733883503579,6.3837,214.49,214.34,29.85366281]
[1733883503580,12.61973406,214.48,214.38,5.6347799]
[1733883503778,0.69558725,214.48,214.38,5.6347799]
[1733883504079,6.3837,214.49,214.38,5.6347799]
[1733883504284,12.6191421,214.48,214.38,5.6347799]
[1733883504480,12.6191421,214.47,214.38,5.6347799]
[1733883504786,6.3837,214.49,214.38,5.6347799]
[1733883504986,2.3301,214.44,214.38,5.6347799]
[1733883505187,6.3837,214.49,214.38,5.6347799]
[1733883505383,6.3837,214.49,214.38,35.48844271]
[1733883505580,6.5525,214.49,214.38,35.48844271]
[1733883505885,4.2228,214.49,214.38,35.48844271]
[1733883506087,29.85366281,214.58,214.38,35.48844271]
[1733883506286,22.50444114,214.57,214.39,2.218]
[1733883506581,13.31389226,214.56,214.39,2.218]
[1733883506786,12.61858319,214.55,214.39,2.218]
[1733883506985,33.01366281,214.58,214.39,2.218]
[1733883507288,2.3295,214.5,214.43,2.3302]
[1733883507490,2.3295,214.5,214.44,3.16]
[1733883507786,4.4282,214.59,214.47,2.3297]
[1733883507980,22.51302854,214.58,214.46,29.85366281]
[1733883508290,4.4282,214.59,214.46,29.85366281]
[1733883508488,12.62371803,214.58,214.46,29.85366281]
[1733883508980,2.3289,214.55,214.48,2.3296]
[1733883510185,2.3288,214.57,214.47,18.35425814]
[1733883510683,21.51425814,214.65,214.52,2.3292]
[1733883510684,18.35425814,214.65,214.52,2.3292]
[1733883510885,22.51431396,214.64,214.53,3.16]
[1733883511085,22.51431396,214.63,214.53,3.16]
[1733883511390,12.62450678,214.62,214.53,3.16]
[1733883511585,12.62450678,214.61,214.53,3.16]
[1733883511785,12.62450678,214.6,214.47,18.35425814]
[1733883511981,12.62217389,214.59,214.48,3.16]
[1733883512285,2.3289,214.55,214.48,3.16]
[1733883512486,21.51425814,214.61,214.48,3.16]
[1733883512692,13.31569234,214.6,214.45,3.16]
[1733883512886,13.31569234,214.59,214.44,3.16]
[1733883513081,18.35425814,214.57,214.39,69.07225814]
[1733883513287,12.62051935,214.56,214.42,3.16]
[1733883513484,15.78051935,214.55,214.42,3.16]
[1733883513789,5.2805,214.55,214.42,3.16]
[1733883514289,5.2805,214.55,214.43,2.33176327]
[1733883514485,2.3293,214.52,214.43,2.33176327]
[1733883514682,5.2805,214.55,214.43,2.33176327]
[1733883514882,2.1205,214.55,214.44,5.47695629]
[1733883515083,2.1205,214.55,214.47,2.3297]
[1733883515287,3.16,214.62,214.48,3.16]
[1733883515590,13.31662122,214.61,214.48,3.16]
[1733883515892,5.2221,214.64,214.48,3.16]
[1733883516190,13.31455048,214.63,214.48,3.16]
[1733883516488,12.61958314,214.62,214.48,3.16]
[1733883516685,5.2221,214.64,214.48,3.16]
[1733883516990,13.31171933,214.63,214.48,3.16]
[1733883517187,12.61676555,214.62,214.48,3.16]
[1733883517391,2.0621,214.64,214.48,3.16]
[1733883517594,12.61547641,214.63,214.48,3.16]
[1733883517797,2.0621,214.64,214.49,29.83192257]
[1733883517990,12.61546438,214.63,214.49,29.83192257]
[1733883518291,2.0621,214.64,214.49,29.83192257]
[1733883518497,29.83192257,214.72,214.53,29.83192257]
[1733883518693,29.83192257,214.72,214.54,3.16]
[1733883518694,31.92047611,214.71,214.54,3.16]
[1733883518992,13.31023792,214.7,214.54,3.16]
[1733883519194,2.3281,214.63,214.56,2.3288]
[1733883519395,5.69245563,214.7,214.54,3.16]
[1733883519595,0.69470364,214.69,214.54,3.16]
[1733883519797,2.3277,214.66,214.59,2.3284]
[1733883519994,2.3277,214.66,214.6,3.16]
[1733883523990,6.5726,214.71,214.6,3.16]
[1733883524195,2.3276,214.68,214.61,2.3282]
[1733883524398,6.5726,214.71,214.6,3.16]
[1733883524695,13.29747229,214.7,214.6,8.79291402]
[1733883524902,14.93029711,214.69,214.61,2.3282]
[1733883525101,0.69467518,214.68,214.61,2.3282]
[1733883525398,6.5726,214.71,214.61,2.3282]
[1733883525601,0.21117,214.73,214.61,29.83192257]
[1733883525801,0.69453224,214.72,214.61,29.83192257]
[1733883526002,0.21117,214.73,214.61,29.83192257]
[1733883527000,0.69448591,214.72,214.61,29.83192257]
[1733883527200,0.21117,214.73,214.61,29.83192257]
[1733883527502,0.21117,214.73,214.65,2.3278]
[1733883527701,0.21117,214.73,214.66,3.16]
[1733883528000,2.3272,214.71,214.66,3.16]
[1733883528494,0.21117,214.73,214.66,3.16]
[1733883529500,0.69456629,214.72,214.66,3.16]
[1733883530102,2.3272,214.71,214.66,3.16]
[1733883531705,2.3273,214.7,214.64,2.3279]
[1733883531906,0.21117,214.73,214.65,32.99192257]
[1733883532502,29.83192257,214.8,214.66,2.3277]
[1733883532701,13.25499323,214.79,214.66,2.3277]
[1733883532901,29.83192257,214.8,214.66,2.3277]
[1733883532902,13.25499323,214.78,214.66,2.3277]
[1733883533101,13.25629943,214.77,214.66,2.3277]
[1733883533405,0.69445879,214.76,214.66,2.3277]
[1733883533602,2.327,214.73,214.66,2.3277]
[1733883533999,2.327,214.73,214.65,32.99192257]
[1733883534000,5.61180754,214.78,214.65,32.99192257]
[1733883534205,13.25776949,214.77,214.64,3.16]
[1733883534408,43.08969206,214.76,214.6,5.63291402]
[1733883534604,16.41776949,214.75,214.6,5.63291402]
[1733883534802,12.56331545,214.74,214.6,5.63291402]
[1733883534999,0.69445404,214.73,214.61,29.83192257]
[1733883535203,0.69445404,214.73,214.62,2.328]
[1733883535402,2.0386,214.72,214.62,2.328]
[1733883535604,2.2328,214.71,214.62,2.328]
[1733883536503,2.2328,214.71,214.6,23.9659321]
[1733883536704,2.2328,214.71,214.6,5.63291402]
[1733883536911,0.69471594,214.7,214.6,5.63291402]
[1733883538203,0.69471594,214.7,214.61,2.3282]
[1733883538405,2.3278,214.66,214.6,5.63291402]
[1733883538612,0.69471594,214.7,214.6,5.63291402]
[1733883538808,2.2328,214.71,214.6,5.63291402]
[1733883539205,0.69470206,214.7,214.6,5.63291402]
[1733883539408,2.2328,214.71,214.6,5.63291402]
[1733883539909,2.3278,214.66,214.6,5.63291402]
[1733883540111,2.2328,214.71,214.61,2.3282]
[1733883540314,2.3277,214.67,214.6,5.63291402]
[1733883540516,2.2328,214.71,214.6,5.63291402]
[1733883540712,2.2328,214.71,214.6,7.96121402]
[1733883541114,2.2328,214.71,214.59,3.16]
[1733883541313,13.27401131,214.7,214.59,3.16]
[1733883541513,0.69473486,214.69,214.59,3.16]
[1733883541813,2.2328,214.71,214.59,8.73729332]
[1733883542008,0.69467032,214.7,214.59,8.73729332]
[1733883542214,0.69467032,214.7,214.51,38.10091581]
[1733883542215,18.33301808,214.7,214.51,38.10091581]
[1733883542411,12.58521923,214.69,214.52,3.16]
[1733883542713,2.3288,214.56,214.51,41.26091581]
[1733883543808,18.33301808,214.66,214.52,5.5890351]
[1733883543809,2.3284,214.6,214.52,5.5890351]
[1733883544008,3.16,214.66,214.52,5.5890351]
[1733883544212,13.29184168,214.65,214.55,2.3289]
[1733883544406,2.3283,214.61,214.52,5.5890351]
[1733883545313,3.16,214.68,214.5,18.33301808]
[1733883545515,2.1246,214.6,214.5,5.5895184]
[1733883545707,2.1328,214.59,214.5,5.5895184]
[1733883547608,2.3289,214.55,214.5,5.5895184]
[1733883547807,2.1328,214.59,214.46,18.33301808]
[1733883548010,12.6425103,214.58,214.47,3.14]
[1733883548215,2.3289,214.55,214.48,2.3296]
[1733883548607,2.3289,214.55,214.48,5.53992005]
[1733883548909,2.3289,214.55,214.41,2.0418]
[1733883548910,3.14,214.56,214.41,3.14]
[1733883549211,3.14,214.56,214.38,18.33301808]
[1733883549212,30.98401327,214.55,214.38,18.33301808]
[1733883549416,2.3301,214.44,214.38,18.33301808]
[1733883549916,3.14,214.5,214.35,5.45881258]
[1733883550117,24.44520789,214.49,214.35,5.45881258]
[1733883550414,3.14,214.57,214.42,18.33301808]
[1733883550613,0.69526515,214.56,214.43,3.14]
[1733883550917,2.3292,214.53,214.44,2.3301]
[1733883551112,0.69526515,214.56,214.43,3.14]
[1733883551313,22.26894703,214.55,214.43,3.14]
[1733883551519,12.66314541,214.54,214.42,18.33301808]
[1733883551712,12.66230193,214.53,214.42,18.33301808]
[1733883551917,5.49293366,214.56,214.42,18.33301808]
[1733883552119,2.3291,214.54,214.42,18.33301808]
[1733883552318,5.3207,214.58,214.42,18.33301808]
[1733883552516,12.66243479,214.57,214.42,18.33301808]
[1733883552819,12.66243479,214.56,214.42,18.33301808]
[1733883553216,5.3207,214.58,214.44,2.3301]
[1733883553418,5.3207,214.58,214.42,18.33301808]
[1733883553419,13.35909108,214.57,214.42,18.33301808]
[1733883553721,13.35908928,214.56,214.42,18.33301808]
[1733883554016,10.89935816,214.58,214.41,3.14]
[1733883554017,13.35916612,214.55,214.41,3.14]
[1733883554211,10.89935816,214.58,214.41,3.14]
[1733883554416,2.3296,214.49,214.41,5.4703]
[1733883554720,10.89935816,214.58,214.41,5.4703]
[1733883555020,22.26862986,214.57,214.41,5.4703]
[1733883555211,22.26862986,214.56,214.41,5.4703]
[1733883555519,13.35764561,214.55,214.41,5.4703]
[1733883555818,16.49764561,214.54,214.41,5.4703]
[1733883556015,13.35764561,214.53,214.39,2.3305]
[1733883556219,31.69066369,214.52,214.34,21.49301808]
[1733883556418,18.33301808,214.48,214.3,3.16]
[1733883556615,20.85994561,214.47,214.32,2.3313]
[1733883556819,13.35764561,214.46,214.32,2.3313]
[1733883557021,13.35764561,214.45,214.32,2.3313]
[1733883557216,2.3306,214.39,214.31,41.29645608]
[1733883557613,2.1667,214.46,214.31,41.29645608]
[1733883557820,0.69560445,214.45,214.34,7.93520051]
[1733883558123,2.1667,214.46,214.34,5.60410051]
[1733883558425,2.3305,214.41,214.34,5.60410051]
[1733883558720,2.3303,214.42,214.31,41.29645608]
[1733883558924,2.1667,214.46,214.31,38.13645608]
[1733883558925,18.33301808,214.44,214.31,38.13645608]
[1733883559126,3.16,214.41,214.24,18.33301808]
[1733883559321,3.16,214.41,214.23,3.16]
[1733883559322,2.3311,214.35,214.23,3.16]
[1733883559527,18.33301808,214.4,214.23,3.16]
[1733883559729,13.32531306,214.39,214.26,5.50124844]
[1733883559925,2.3317,214.29,214.21,2.3325]
[1733883560134,2.3317,214.29,214.2,18.33301808]
[1733883560135,3.16,214.35,214.22,3.16]
[1733883560336,9.4367,214.34,214.22,3.16]
[1733883560538,6.2767,214.34,214.22,3.16]
[1733883560835,2.3317,214.29,214.22,3.16]
[1733883563532,2.3317,214.29,214.24,5.49898726]
[1733883564934,6.2767,214.34,214.24,5.49898726]
[1733883565135,4.248,214.34,214.24,5.49898726]
[1733883565937,4.4753,214.34,214.25,2.3321]
[1733883566134,2.144,214.34,214.24,5.49898726]
[1733883566635,2.3318,214.29,214.24,5.49898726]
[1733883567328,3.16,214.33,214.22,3.16]
[1733883567839,2.332,214.27,214.18,6.5871]
[1733883568036,18.33301808,214.32,214.13,66.81301808]
[1733883568238,18.33301808,214.32,214.15,3.16]
[1733883568440,3.16,214.33,214.17,5.66422469]
[1733883568441,2.3326,214.21,214.17,5.66422469]
[1733883568639,3.16,214.27,214.17,5.66422469]
[1733883568944,18.33301808,214.32,214.17,5.66422469]
[1733883569131,3.16,214.31,214.17,5.66422469]
[1733883569331,3.16,214.31,214.18,3.16]
[1733883569531,2.3321,214.26,214.19,2.3327]
[1733883569736,3.16,214.31,214.19,2.3327]
[1733883570840,18.33301808,214.32,214.18,3.16]
[1733883571034,2.144,214.34,214.18,3.16]
[1733883571235,2.144,214.34,214.21,18.33301808]
[1733883571545,2.144,214.34,214.24,2.3323]
[1733883571744,2.144,214.34,214.24,5.4923]
[1733883572143,2.144,214.34,214.24,3.16]
[1733883572445,3.16,214.38,214.24,3.16]
[1733883572744,2.331,214.36,214.24,3.16]
[1733883572951,3.16,214.38,214.28,2.3317]
[1733883573540,3.16,214.38,214.24,3.16]
[1733883573841,4.0473,214.47,214.29,18.33301808]
[1733883574036,2.3301,214.44,214.3,3.16]
[1733883574340,11.64159087,214.47,214.36,2.3309]
[1733883574640,11.64159087,214.47,214.3,9.2983]
[1733883574641,6.1814,214.47,214.37,3.16]
[1733883576440,2.3301,214.44,214.37,3.16]
[1733883576641,6.1814,214.47,214.37,3.16]
[1733883578449,4.1302,214.47,214.39,2.3306]
[1733883578940,2.3301,214.45,214.37,5.4907]
[1733883579240,4.1302,214.47,214.37,3.16]
[1733883580746,3.14,214.55,214.37,21.49301808]
[1733883581048,25.66161808,214.56,214.37,21.49301808]
[1733883581244,12.56929005,214.55,214.37,21.49301808]
[1733883581442,25.66161808,214.56,214.37,21.49301808]
[1733883581646,2.3294,214.51,214.43,2.3301]
[1733883581843,0.69534519,214.55,214.44,3.14]
[1733883583050,0.69534519,214.55,214.49,2.3295]
[1733883583646,2.3289,214.55,214.49,2.3295]
[1733883583844,2.1837,214.56,214.42,6.3316]
[1733883584045,18.33301808,214.55,214.43,3.14]
[1733883584240,2.3295,214.5,214.43,3.14]
[1733883585045,2.3296,214.49,214.43,5.4701]
[1733883585845,2.3298,214.47,214.43,3.14]
[1733883586249,18.33301808,214.55,214.43,3.14]
[1733883586449,2.3298,214.47,214.43,3.14]
[1733883587448,2.3292,214.52,214.43,3.14]
[1733883587847,4.2216,214.56,214.43,3.14]
[1733883588149,18.33301808,214.67,214.54,2.329]
[1733883588355,13.2991574,214.66,214.53,3.14]
[1733883588647,13.2991574,214.65,214.53,3.14]
[1733883588847,13.2991574,214.64,214.53,3.14]
[1733883589054,13.2991574,214.63,214.53,3.14]
[1733883589250,12.60415709,214.62,214.53,3.14]
[1733883589448,4.1857,214.67,214.53,21.47301808]
[1733883590544,12.60506104,214.66,214.53,3.14]
[1733883590752,13.29995189,214.65,214.53,3.14]
[1733883590951,12.60564126,214.64,214.53,3.14]
[1733883591255,4.1857,214.67,214.53,3.14]
[1733883591456,13.29875928,214.66,214.53,3.14]
[1733883591643,13.29875928,214.65,214.53,3.14]
[1733883591848,4.1857,214.67,214.53,3.14]
[1733883592050,3.31878,214.68,214.53,3.14]
[1733883592051,1.4600444,214.66,214.6,18.33301808]
[1733883592258,388.96713639,214.86,214.66,18.33301808]
[1733883592259,2.3256,214.86,214.66,18.33301808]
[1733883592454,2.3256,214.86,214.61,35.45301808]
[1733883592455,4.3016,214.87,214.73,18.33301808]
[1733883593151,3.14,214.86,214.73,18.33301808]
[1733883593349,3.14,214.86,214.73,21.47301808]
[1733883594156,4.3016,214.87,214.77,18.33301808]
[1733883595150,4.3016,214.87,214.77,20.65941808]
[1733883597151,4.3016,214.87,214.77,18.33301808]
[1733883597854,4.3016,214.87,214.8,5.68609208]
[1733883598359,4.3016,214.87,214.77,18.33301808]
[1733883599154,2.3256,214.86,214.77,18.33301808]
[1733883599348,4.3016,214.87,214.79,5.54141207]
[1733883599750,4.3016,214.87,214.81,18.33301808]
[1733883600452,2.1779,214.9,214.81,18.33301808]
[1733883600656,2.325,214.92,214.81,18.33301808]
[1733883601256,2.325,214.92,214.79,8.68141207]
[1733883601257,2.3246,214.95,214.85,20.65861808]
[1733883601454,3.14,214.99,214.85,23.79861808]
[1733883601652,3.14,214.99,214.85,21.47301808]
[1733883601857,2.3247,214.94,214.85,21.47301808]
[1733883603263,8.73194745,214.99,214.85,21.47301808]
[1733883603457,8.73194745,214.99,214.81,18.33301808]
[1733883603660,2.3253,214.89,214.81,18.33301808]
[1733883603860,3.14,214.93,214.81,18.33301808]
[1733883604057,4.3221,214.92,214.81,18.33301808]
[1733883605262,4.3221,214.92,214.79,8.68141207]
[1733883605264,4.3221,214.92,214.85,18.33301808]
[1733883605956,6.647,214.92,214.85,18.33301808]
[1733883606154,4.3221,214.92,214.85,18.33301808]
[1733883606854,2.0071,215.0,214.85,21.47301808]
[1733883607053,18.33301808,215.05,214.85,21.47301808]
[1733883607258,3.14,215.29,215.04,18.33301808]
[1733883607461,4.1675,215.31,215.05,3.14]
[1733883607462,6.2493,215.18,215.05,3.14]
[1733883607663,4.1675,215.18,215.08,18.33301808]
[1733883608263,2.3217,215.22,215.12,18.33301808]
[1733883608462,2.3217,215.22,215.13,3.14]
[1733883608763,23.94961628,215.25,215.09,3.14]
[1733883609760,2.3223,215.16,215.09,3.14]
[1733883610260,2.3223,215.16,215.04,24.02557664]
[1733883610261,21.47301808,215.21,215.05,3.14]
[1733883610763,5.6165982,215.25,215.12,18.33301808]
[1733883610962,2.3219,215.2,215.13,3.14]
[1733883612160,18.33301808,215.18,215.04,5.69255856]
[1733883612363,3.14,215.19,215.04,5.69255856]
[1733883612559,3.14,215.19,215.04,24.02557664]
[1733883612961,2.3224,215.15,215.05,5.4635]
[1733883614261,3.14,215.19,215.05,5.4635]
[1733883614464,2.3226,215.14,215.05,3.14]
[1733883614666,3.14,215.19,215.04,24.02557664]
[1733883614866,3.14,215.19,215.04,27.16557664]
[1733883615056,3.14,215.19,215.04,8.83255856]
[1733883615462,18.33301808,215.18,215.04,8.83255856]
[1733883615659,2.3237,215.04,214.95,3.14]
[1733883615862,3.14,215.1,214.95,3.14]
[1733883616866,2.3234,215.06,215.0,5.71564143]
[1733883618263,3.14,215.1,214.95,3.14]
[1733883618977,6.3644,215.13,214.98,18.33301808]
[1733883619368,6.3644,215.13,214.99,5.66038279]
[1733883620870,2.3235,215.06,214.99,5.66038279]
[1733883621072,6.3644,215.13,214.99,5.66038279]
[1733883621566,2.3236,215.04,214.99,5.66038279]
[1733883622270,6.3644,215.13,214.99,5.66038279]
[1733883622973,2.3232,215.08,215.0,2.324]
[1733883623163,2.3232,215.08,215.01,3.14]
[1733883623364,6.3644,215.13,215.01,3.14]
[1733883624464,6.3644,215.13,214.99,5.66038279]
[1733883625870,2.3237,215.03,214.99,5.66038279]
[1733883626477,6.3644,215.13,214.99,5.66038279]
[1733883627770,2.3236,215.04,214.99,5.66038279]
[1733883630071,6.3644,215.13,214.99,5.66038279]
[1733883630275,6.3644,215.13,215.01,18.33301808]
[1733883630276,3.14,215.12,215.01,18.33301808]
[1733883630474,6.3644,215.13,215.01,18.33301808]
[1733883631077,2.3233,215.08,215.01,18.33301808]
[1733883632675,2.3233,215.08,215.01,20.65691808]
[1733883633170,6.3644,215.13,215.01,18.33301808]
[1733883633376,6.3644,215.13,214.99,5.66038279]
[1733883634177,2.3238,215.03,214.99,5.66038279]
[1733883634569,6.3644,215.13,214.84,6.45458641]
[1733883634778,2.324,215.01,214.94,20.65771808]
[1733883635080,18.33301808,215.06,214.91,3.14]
[1733883635277,3.14,215.05,214.86,18.33301808]
[1733883635479,3.14,215.05,214.87,3.14]
[1733883635773,2.3241,215.0,214.92,2.3248]
[1733883635979,3.14,215.04,214.91,18.33301808]
[1733883636780,3.14,215.09,214.95,18.33301808]
[1733883636979,3.14,215.09,214.96,3.14]
[1733883637782,12.11255054,215.08,214.96,3.14]
[1733883638080,3.14,215.09,214.95,2.3245]
[1733883638274,12.11431403,215.08,214.95,2.3245]
[1733883638474,3.14,215.09,214.95,2.3245]
[1733883638675,12.11814986,215.08,214.94,18.33301808]
[1733883638875,3.14,215.09,214.98,2.3242]
[1733883639180,3.14,215.09,214.98,5.4642]
[1733883639578,6.3644,215.13,214.98,5.4642]
[1733883639579,3.14,215.11,214.98,5.4642]
[1733883639772,6.3644,215.13,214.98,21.47301808]
[1733883639970,6.3644,215.13,214.98,18.33301808]
[1733883640176,2.3233,215.08,214.99,3.14]
[1733883640474,6.3644,215.13,214.99,3.14]
[1733883640674,20.99176247,215.12,214.99,3.14]
[1733883640979,2.3236,215.05,214.99,3.14]
[1733883641374,6.3644,215.13,214.98,18.33301808]
[1733883641580,3.14,215.09,214.96,3.14]
[1733883643083,6.3644,215.13,214.96,3.14]
[1733883643278,3.14,215.12,214.96,3.14]
[1733883643480,12.14776278,215.11,214.96,3.14]
[1733883643780,2.3236,215.05,214.98,2.3242]
[1733883644482,2.3236,215.04,214.96,5.4644]
[1733883646678,2.3236,215.04,214.97,2.3243]
[1733883647077,3.14,215.12,214.97,2.3243]
[1733883647285,2.3237,215.03,214.97,2.3243]
[1733883649180,3.14,215.12,214.97,2.3243]
[1733883649382,21.09338169,215.11,214.97,2.3243]
[1733883649575,21.09338169,215.1,214.97,2.3243]
[1733883649776,12.18420617,215.09,214.97,2.3243]
[1733883649973,12.18420617,215.11,214.97,2.3243]
[1733883650175,21.09340068,215.1,214.97,2.3243]
[1733883650373,2.3237,215.03,214.97,2.3243]
[1733883650773,2.3236,215.04,214.97,2.3243]
[1733883652576,2.3237,215.03,214.97,2.3243]
[1733883654182,2.3236,215.05,214.98,18.33301808]
[1733883654583,2.3236,215.05,215.0,5.51972442]
[1733883657585,12.23820833,215.04,215.0,5.51972442]
[1733883657879,2.3236,215.05,215.0,5.51972442]
[1733883658084,12.23844493,215.04,215.0,5.51972442]
[1733883658287,11.85956503,215.13,215.0,5.51972442]
[1733883658482,20.90426202,215.12,215.02,18.33301808]
[1733883658683,20.90426202,215.11,215.02,21.45301808]
[1733883658883,20.90426202,215.1,215.03,2.3236]
[1733883659078,20.90426202,215.09,215.03,2.3236]
[1733883659279,6.3644,215.13,215.03,2.3236]
[1733883659280,12.24208934,215.08,215.03,2.3236]
[1733883659577,12.24208934,215.07,215.03,2.3236]
[1733883659782,6.3644,215.13,215.03,2.3236]
[1733883659977,20.91283499,215.12,215.03,2.3236]
[1733883660176,20.91283499,215.11,215.03,2.3236]
[1733883660376,6.3644,215.13,215.03,2.3236]
[1733883660377,20.91283499,215.1,215.03,2.3236]
[1733883660578,20.91283499,215.09,215.02,3.12]
[1733883660978,20.91283499,215.08,214.97,3.12]
[1733883661178,20.91283499,215.07,214.97,3.12]
[1733883661383,20.91283499,215.06,214.94,18.33301808]
[1733883661584,20.91283499,215.05,214.94,18.33301808]
[1733883661783,23.03373499,215.04,214.94,18.33301808]
[1733883661980,20.91283499,215.03,214.9,18.33301808]
[1733883662187,20.91283499,215.02,214.9,21.45301808]
[1733883662380,20.91283499,215.01,214.9,21.45301808]
[1733883662585,2.3245,214.96,214.9,18.33301808]
[1733883662790,12.24713716,214.95,214.9,18.33301808]
[1733883663295,4.2864,215.02,214.9,18.33301808]
[1733883663477,4.2864,215.02,214.89,3.12]